bitfinex/quotes_ETHUSD_20251019
["timestamp","ask_amount","ask_price","bid_price","bid_amount"]
[1760893673208,2.58733667,4023.5,4022.8,0.50717004]
[1760893673499,2.58733667,4023.5,4022.9,0.50717004]
[1760893673500,2.48570718,4023.0,4022.9,0.50717004]
[1760893673665,6.46060718,4023.0,4022.9,0.50717004]
[1760893673865,45.0,4029.6,4022.9,0.50717004]
[1760893673866,0.09999999,4028.6,4022.9,0.50717004]
[1760893674072,0.12206303,4033.3,4028.4,0.2203]
[1760893674073,0.0029,4030.9,4028.4,0.2203]
[1760893674273,4.364761,4030.2,4029.0,0.6336]
[1760893674479,2.47987579,4032.5,4028.7,0.09999999]
[1760893674480,0.0459,4030.7,4028.7,0.09999999]
[1760893674680,0.0459,4030.7,4029.2,0.09999999]
[1760893674903,0.0029,4030.7,4029.7,0.09999999]
[1760893675206,2.48386,4030.7,4029.2,0.09999999]
[1760893675407,2.48096001,4030.7,4029.7,0.09999999]
[1760893675639,2.48097788,4030.7,4029.8,0.50617169]
[1760893675907,3.463,4031.0,4029.7,0.09999999]
[1760893675908,2.48115116,4030.4,4029.7,0.09999999]
[1760893676206,2.48817444,4030.6,4029.8,0.50601934]
[1760893676411,2.48114821,4030.4,4029.9,0.50601934]
[1760893676574,0.00709655,4030.6,4029.7,0.09999999]
[1760893676775,0.1595,4030.3,4029.6,0.124]
[1760893676979,2.553674,4030.2,4029.6,0.124]
[1760893677279,0.1595,4030.3,4029.6,0.124]
[1760893677613,0.1595,4030.3,4029.7,0.50696379]
[1760893677813,0.1595,4030.3,4029.6,0.124]
[1760893677814,0.0355,4030.3,4030.1,0.09999999]
[1760893678004,0.0355,4030.3,4030.2,0.50696379]
[1760893678610,0.0355,4030.3,4029.3,0.84353016]
[1760893678796,2.146909,4030.2,4029.7,0.09999999]
[1760893678988,2.146909,4030.1,4029.8,0.508028]
[1760893679212,0.0355,4030.3,4029.9,0.508028]
[1760893679511,0.0355,4030.3,4028.8,2.37018319]
[1760893679512,0.0355,4030.3,4030.1,1.39057335]
[1760893679721,0.0355,4030.3,4030.2,0.508028]
[1760893680083,3.9885,4030.3,4030.2,0.508028]
[1760893680405,0.0355,4030.3,4030.2,0.508028]
[1760893680820,0.0355,4030.3,4030.2,1.187428]
[1760893681028,0.00709655,4030.6,4030.5,0.09999999]
[1760893681230,0.00709655,4030.6,4030.5,1.45572044]
[1760893681378,0.00709655,4030.6,4030.5,0.60802799]
[1760893681581,0.00709655,4030.6,4030.5,1.45572044]
[1760893682016,2.43806381,4030.7,4030.5,0.508028]
[1760893682219,2.43806381,4030.7,4030.6,0.508028]
[1760893682384,16.861867,4032.3,4030.6,0.508028]
[1760893682584,16.861867,4032.3,4029.9,1.19269999]
[1760893682585,25.585746,4032.1,4031.0,0.09999999]
[1760893682814,3.9419,4032.2,4030.4,1.27251258]
[1760893682815,2.4806672,4031.2,4031.1,0.508028]
[1760893683016,2.4806672,4031.2,4029.6,1.73658319]
[1760893683017,1.728,4031.0,4029.9,0.84769245]
[1760893683221,1.728,4031.0,4030.0,0.50869173]
[1760893683222,2.48134145,4030.1,4030.0,0.50869173]
[1760893683423,5.84144,4030.4,4030.0,0.60869172]
[1760893683594,2.48121806,4030.3,4030.1,0.50869173]
[1760893683797,2.48121806,4030.3,4029.3,0.84769245]
[1760893684036,2.48121806,4030.3,4028.9,0.6336]
[1760893684037,2.48168671,4029.6,4029.4,0.50911489]
[1760893684197,4.72011,4029.4,4028.4,0.84769245]
[1760893684531,4.72011,4029.4,4028.1,1.27251258]
[1760893684532,2.48220293,4028.7,4028.5,0.50993305]
[1760893684688,2.48237513,4028.4,4027.6,0.84769245]
[1760893685004,2.48237513,4028.4,4025.9,3.00344502]
[1760893685005,2.4826846,4027.9,4027.7,0.51023619]
[1760893685205,2.4826846,4027.9,4026.1,2.17072899]
[1760893685206,2.48315156,4027.2,4027.0,0.84769245]
[1760893685422,3.937,4027.1,4027.0,0.84769245]
[1760893685622,3.9399,4027.1,4027.0,0.51120395]
[1760893685789,2.48289733,4027.6,4027.0,0.51120395]
[1760893685790,0.0029,4028.1,4027.0,0.51120395]
[1760893685996,2.48283268,4027.7,4027.1,0.51120395]
[1760893686296,2.48305316,4027.3,4027.2,0.51120395]
[1760893686935,0.0029,4028.8,4026.9,0.94769244]
[1760893687135,1.728,4028.4,4027.3,0.84769245]
[1760893687323,2.4829915,4027.4,4027.3,0.84769245]
[1760893687649,2.4829915,4027.4,4027.2,1.37251257]
[1760893687650,3.931,4027.4,4027.2,1.37251257]
[1760893687856,3.931,4027.4,4027.1,1.27251258]
[1760893688013,3.931,4027.4,4027.0,0.85488073]
[1760893688014,2.48311481,4027.2,4027.0,0.85488073]
[1760893688215,2.48344706,4026.7,4026.4,0.85488073]
[1760893688450,11.844061,4027.0,4024.8,3.43674502]
[1760893688451,4.21166987,4026.3,4026.0,0.85488073]
[1760893688652,2.48391663,4025.9,4025.7,0.85488073]
[1760893688854,4.16162968,4026.4,4025.2,0.85488073]
[1760893688855,2.48428688,4025.3,4025.2,0.85488073]
[1760893689029,2.4845955,4024.8,4024.7,0.85488073]
[1760893689235,2.4845955,4024.8,4023.6,0.223]
[1760893689236,3.924,4024.8,4024.6,0.85488073]
[1760893689431,2.48453806,4024.9,4024.8,0.09999999]
[1760893689729,2.48465724,4024.7,4024.4,0.85618614]
[1760893689940,2.48465724,4024.7,4022.8,5.48926449]
[1760893689941,2.4849042,4024.3,4024.2,0.85618614]
[1760893690130,1.728,4024.8,4024.3,0.09999999]
[1760893690316,2.48484246,4024.4,4024.3,0.09999999]
[1760893690543,2.48496595,4024.2,4024.1,0.85618614]
[1760893690717,2.48480783,4024.5,4024.3,0.09999999]
[1760893690916,2.48480783,4024.5,4023.0,2.48570064]
[1760893690917,2.48496595,4024.2,4023.7,0.85618614]
[1760893691120,3.915,4024.4,4023.3,0.85618614]
[1760893691121,2.48539828,4023.5,4023.3,0.85618614]
[1760893691338,2.48733813,4024.5,4023.2,0.95618613]
[1760893691339,3.913,4023.4,4023.2,0.95618613]
[1760893691572,2.48552183,4023.3,4023.2,0.85618614]
[1760893691723,2.48552183,4023.3,4022.9,0.95618613]
[1760893691724,2.48564581,4023.1,4022.9,0.95618613]
[1760893691918,2.48558753,4023.2,4022.6,0.85618614]
[1760893692147,1.728,4023.6,4022.9,0.09999999]
[1760893692352,2.48575643,4023.0,4022.5,0.95618613]
[1760893692532,2.48564539,4023.1,4022.8,0.09999999]
[1760893692735,2.48589255,4022.7,4022.6,0.09999999]
[1760893692956,3.907,4022.7,4022.6,0.09999999]
[1760893693160,3.906,4022.7,4022.6,0.09999999]
[1760893693523,1.679,4024.4,4023.2,0.09999999]
[1760893693760,2.48560299,4023.2,4022.8,0.9567978]
[1760893693974,3.902,4023.1,4022.8,0.09999999]
[1760893694164,6.38571059,4023.0,4022.8,0.09999999]
[1760893694321,2.48576897,4022.9,4022.8,0.09999999]
[1760893694528,1.728,4022.9,4022.8,0.09999999]
[1760893694725,4.21378475,4022.9,4022.2,0.85679781]
[1760893694959,1.728,4022.9,4022.7,0.09999999]
[1760893695128,2.48583076,4022.8,4022.7,0.09999999]
[1760893695329,1.728,4022.9,4022.7,0.09999999]
[1760893695547,1.728,4022.9,4022.1,1.07629781]
[1760893695844,3.898,4022.8,4022.7,0.09999999]
[1760893696159,3.898,4022.8,4022.1,0.85679781]
[1760893696345,3.898,4022.8,4021.7,0.85879781]
[1760893696346,1.728,4022.7,4021.7,0.85879781]
[1760893696547,2.4861735,4022.3,4021.7,0.85879781]
[1760893696857,2.48626339,4022.1,4021.7,0.002]
[1760893697453,4.21444885,4021.8,4021.7,0.002]
[1760893697762,5.611,4021.8,4021.7,0.002]
[1760893697964,8.09744885,4021.8,4021.7,0.002]
[1760893698550,1.728,4021.8,4021.7,0.002]
[1760893698751,8.09344885,4021.8,4021.7,0.002]
[1760893698948,5.607,4021.8,4021.7,0.002]
[1760893699160,1.728,4021.8,4021.7,0.002]
[1760893699383,8.09044885,4021.8,4021.7,0.002]
[1760893699584,5.601,4021.8,4021.7,0.002]
[1760893699780,2.48540249,4023.5,4021.7,0.002]
[1760893699958,2.48589411,4022.7,4021.7,0.10199999]
[1760893700160,1.728,4022.4,4021.7,0.002]
[1760893700364,2.67413,4022.5,4021.7,0.002]
[1760893700365,1.728,4022.5,4021.7,0.002]
[1760893700586,2.48541795,4023.5,4021.7,0.002]
[1760893700587,3.7183,4023.4,4021.8,0.09999999]
[1760893700878,1.728,4023.2,4021.8,0.09999999]
[1760893701080,2.48607074,4022.5,4021.8,0.09999999]
[1760893701254,2.48512071,4024.0,4021.8,0.09999999]
[1760893701453,3.867,4023.4,4021.8,0.09999999]
[1760893701689,2.48596058,4022.6,4022.1,0.09999999]
[1760893701850,1.6825,4023.5,4021.8,0.09999999]
[1760893701851,1.728,4022.4,4021.8,0.09999999]
[1760893702051,0.0025,4024.2,4022.1,0.09999999]
[1760893702249,3.204262,4024.1,4022.9,0.09999999]
[1760893702483,4.16473684,4024.6,4022.9,0.09999999]
[1760893702484,2.450612,4023.9,4022.9,0.09999999]
[1760893702687,2.48496257,4024.3,4022.9,0.09999999]
[1760893702688,3.862,4023.8,4022.9,0.09999999]
[1760893702894,2.48570718,4023.0,4022.9,0.09999999]
[1760893703058,2.48563704,4023.2,4022.9,0.09999999]
[1760893703379,3.859,4023.1,4022.9,0.09999999]
[1760893703595,2.48471897,4024.6,4023.2,0.09999999]
[1760893703793,3.855,4024.5,4023.2,0.09999999]
[1760893703995,2.485273,4023.8,4023.2,0.09999999]
[1760893704175,3.855,4023.7,4023.2,0.09999999]
[1760893704382,6.34027686,4023.7,4023.6,0.09999999]
[1760893704596,3.855,4023.7,4023.6,0.09999999]
[1760893704756,6.34027474,4023.7,4023.6,0.09999999]
[1760893704952,3.852,4023.7,4023.6,0.09999999]
[1760893705249,6.33727474,4023.7,4022.2,0.85892648]
[1760893705486,5.685193,4023.6,4022.2,0.2195]
[1760893705655,2.48594569,4022.7,4022.2,0.2195]
[1760893705883,13.32057828,4023.5,4022.3,0.09999999]
[1760893705884,3.846,4022.6,4022.3,0.09999999]
[1760893706195,6.33202457,4022.5,4022.3,0.09999999]
[1760893706507,3.843,4022.4,4022.3,0.09999999]
[1760893706710,6.32907796,4022.4,4022.3,0.09999999]
[1760893707581,3.843,4022.4,4022.3,0.09999999]
[1760893708482,6.32907796,4022.4,4022.3,0.09999999]
[1760893709701,3.83,4022.4,4022.3,0.09999999]
[1760893710102,2.48595657,4022.6,4022.3,0.09999999]
[1760893710303,3.822,4022.5,4022.3,0.09999999]
[1760893710707,3.819,4022.4,4022.3,0.09999999]
[1760893711014,3.819,4022.6,4022.3,0.09999999]
[1760893711215,4.33776897,4022.9,4022.2,0.63942648]
[1760893711434,4.33776897,4022.9,4022.1,0.002]
[1760893711435,0.0025,4023.7,4022.1,0.002]
[1760893711600,2.48546005,4023.4,4022.1,0.002]
[1760893711918,2.48620158,4022.2,4022.1,0.002]
[1760893712116,8.02920158,4022.2,4022.1,0.002]
[1760893712481,8.03170158,4022.2,4022.1,0.002]
[1760893712682,11.36570158,4022.2,4022.1,0.002]
[1760893712879,8.02920158,4022.2,4022.1,0.002]
[1760893713189,8.02520158,4022.2,4022.1,0.002]
[1760893714185,10.46076858,4022.2,4022.1,0.002]
[1760893714412,8.02520158,4022.2,4022.1,0.002]
[1760893714714,10.68747658,4022.2,4022.1,0.002]
[1760893714884,8.01620158,4022.2,4022.1,0.002]
[1760893715085,8.01870158,4022.2,4022.1,0.002]
[1760893715310,2.48644885,4021.8,4021.7,0.002]
[1760893715623,2.48644885,4021.8,4019.9,0.4387]
[1760893715624,2.48688169,4021.1,4020.8,1.27251258]
[1760893715829,1.728,4020.9,4019.9,1.27251258]
[1760893716120,1.728,4020.9,4019.4,1.73658319]
[1760893716121,1.728,4020.7,4020.2,1.27251258]
[1760893716326,1.728,4020.7,4019.6,1.73858319]
[1760893716327,2.48743843,4020.2,4020.1,0.2265]
[1760893716491,2.48743843,4020.2,4019.6,1.27451258]
[1760893716492,2.48774784,4019.7,4019.6,0.002]
[1760893716682,6.28374784,4019.7,4019.6,0.002]
[1760893717087,3.795,4019.7,4019.6,0.4407]
[1760893717288,3.795,4020.0,4019.6,0.4407]
[1760893717493,3.795,4019.9,4019.7,0.4387]
[1760893717692,1.728,4020.9,4019.6,1.27451258]
[1760893717693,3.794,4019.8,4019.6,0.002]
[1760893717911,3.794,4019.7,4019.6,0.002]
[1760893718124,2.48663434,4021.5,4019.6,1.27451258]
[1760893718412,7.052974,4021.1,4019.6,1.27451258]
[1760893718715,2.48757069,4020.0,4019.6,0.002]
[1760893719017,3.79,4019.9,4019.6,1.27451258]
[1760893719199,3.79,4019.9,4019.7,1.27251258]
[1760893719399,3.79,4019.9,4019.6,1.27451258]
[1760893719400,6.27763062,4019.9,4019.6,1.27451258]
[1760893719599,6.27763062,4019.9,4019.6,0.002]
[1760893719600,3.79,4019.9,4019.6,0.002]
[1760893719802,2.48768595,4019.8,4019.6,0.002]
[1760893719998,2.48774784,4019.7,4019.6,0.002]
[1760893720923,3.79,4019.9,4019.6,0.4407]
[1760893721129,2.48774784,4019.7,4019.6,0.002]
[1760893722928,2.4862809,4022.1,4019.6,0.002]
[1760893722929,21.916148,4023.9,4019.6,0.4407]
[1760893723131,2.48651676,4021.7,4021.2,1.30328758]
[1760893723298,1.681,4023.9,4019.6,0.4407]
[1760893723299,3.79,4021.6,4021.0,1.30328758]
[1760893723497,3.791,4021.5,4020.9,1.30328758]
[1760893723827,3.791,4021.5,4021.1,1.30328758]
[1760893723828,3.791,4021.4,4021.1,1.30328758]
[1760893723999,3.791,4021.4,4021.3,1.30328758]
[1760893724198,0.001,4021.5,4021.3,1.74198758]
[1760893724425,0.001,4021.5,4021.4,0.4387]
[1760893725536,3.786,4021.5,4021.2,1.30316573]
[1760893725699,2.48669664,4021.4,4021.2,1.30316573]
[1760893725893,2.48675801,4021.3,4021.2,1.30316573]
[1760893727716,2.48683684,4021.2,4020.8,0.2265]
[1760893728137,2.48683684,4021.2,4020.8,1.96308319]
[1760893728350,2.48688423,4021.1,4021.0,1.30398404]
[1760893728764,2.48694354,4021.0,4020.9,1.30398404]
[1760893729676,6.25694354,4021.0,4020.9,1.30398404]
[1760893729825,2.48706725,4020.8,4020.7,1.30398404]
[1760893730353,2.4871291,4020.7,4020.6,1.30398404]
[1760893730664,2.4871291,4020.7,4020.5,1.30398404]
[1760893730665,2.48719096,4020.6,4020.5,1.30398404]
[1760893730836,2.48725282,4020.5,4020.3,1.30398404]
[1760893731232,3.765,4020.6,4019.6,0.002]
[1760893731233,3.765,4020.6,4020.1,1.30398404]
[1760893731438,2.48743843,4020.2,4019.9,1.30398404]
[1760893731756,3.762,4020.1,4019.9,1.30398404]
[1760893732324,6.24950863,4020.1,4019.9,1.30398404]
[1760893732524,3.762,4020.1,4019.9,1.30398404]
[1760893732751,3.762,4020.1,4019.7,1.30398404]
[1760893732953,3.886,4020.1,4019.6,1.30598404]
[1760893733125,2.48757082,4020.0,4019.6,1.30598404]
[1760893733524,6.37351023,4020.1,4019.6,1.30598404]
[1760893733742,6.37351023,4020.1,4019.6,1.74468404]
[1760893733968,2.48756633,4020.0,4019.6,1.74468404]
[1760893734126,2.48756633,4020.0,4019.7,1.30398404]
[1760893734328,3.886,4020.1,4019.7,1.30398404]
[1760893734329,6.37350175,4020.1,4019.7,1.30398404]
[1760893734546,0.124,4019.8,4019.7,1.30398404]
[1760893734726,2.61168595,4019.8,4019.6,0.002]
[1760893735124,6.23274784,4019.7,4019.6,0.002]
[1760893738545,7.96074784,4019.7,4019.6,0.002]
[1760893740691,4.21574784,4019.7,4019.6,0.002]
[1760893740854,6.21274784,4019.7,4019.6,0.002]
[1760893741182,6.33674784,4019.7,4019.6,0.4407]
[1760893741382,6.33674784,4019.7,4019.6,0.002]
[1760893741587,3.849,4019.7,4019.6,0.002]
[1760893741993,0.001,4021.9,4019.8,3.2626]
[1760893742175,0.001,4021.9,4021.4,1.53048404]
[1760893742374,0.001,4021.9,4021.4,0.2265]
[1760893742375,0.545,4021.8,4021.4,0.2265]
[1760893743092,0.545,4021.8,4021.4,0.6652]
[1760893743502,3.03147637,4021.8,4021.4,0.2265]
[1760893743705,2.48769176,4021.5,4021.2,0.2265]
[1760893743884,0.001,4021.5,4021.2,0.6652]
[1760893744080,0.001,4021.5,4021.3,0.4387]
[1760893744479,0.001,4021.5,4021.4,0.4387]
[1760893745302,0.001,4021.5,4021.2,0.2265]
[1760893745805,0.001,4021.5,4021.3,0.4435]
[1760893746304,0.001,4021.5,4021.2,0.2265]
[1760893747212,0.001,4021.5,4021.3,0.4435]
[1760893747606,0.001,4021.5,4021.4,0.4435]
[1760893748508,0.001,4021.5,4020.7,1.30398404]
[1760893748708,0.001,4021.5,4020.9,0.2355]
[1760893750108,0.001,4021.5,4021.0,0.46836943]
[1760893750402,0.001,4021.5,4021.0,0.4435]
[1760893750607,0.001,4021.5,4021.3,2.48673945]
[1760893750795,0.001,4021.5,4021.1,0.4435]
[1760893750990,0.001,4021.5,4021.2,0.4475]
[1760893751197,0.001,4021.5,4021.2,2.93430589]
[1760893751406,0.001,4021.5,4021.3,2.93425708]
[1760893751598,0.001,4021.5,4021.3,0.4475]
[1760893751800,0.001,4021.5,4021.4,0.4475]
[1760893751994,0.001,4021.5,4021.4,0.5715]
[1760893752769,0.001,4021.5,4021.4,3.05819617]
[1760893752995,0.001,4021.5,4021.4,0.5715]
[1760893755143,0.003,4024.0,4021.4,5.527564]
[1760893755428,0.003,4024.0,4022.9,1.30336294]
[1760893755609,0.003,4024.0,4022.7,4.94836294]
[1760893755808,0.003,4024.0,4022.7,3.645]
[1760893755985,0.003,4024.0,4023.6,0.2272]
[1760893756431,0.003,4024.0,4023.9,2.48515122]
[1760893756725,0.003,4024.0,4023.9,3.14360273]
[1760893756886,3.695,4025.7,4024.6,2.48466606]
[1760893757097,3.695,4025.7,4024.7,3.15935574]
[1760893757281,3.695,4025.7,4025.0,2.48446316]
[1760893757582,3.69,4026.3,4025.1,0.4475]
[1760893757807,2.48373529,4026.2,4025.1,0.4475]
[1760893758110,3.69,4026.4,4025.1,2.93187461]
[1760893758320,3.69,4026.4,4025.2,1.10594348]
[1760893758514,2.48360235,4026.5,4025.3,0.4475]
[1760893758715,1.728,4026.9,4025.3,0.4475]
[1760893759020,2.48373315,4026.2,4025.3,2.9995]
[1760893759316,3.686,4026.1,4024.7,0.2272]
[1760893759516,5.414,4026.0,4024.7,0.2272]
[1760893759717,5.414,4026.0,4024.7,0.1272]
[1760893759920,2.48405419,4025.7,4024.7,0.1272]
[1760893760218,2.48448898,4025.0,4024.7,0.1272]
[1760893760422,1.728,4025.9,4024.6,0.2272]
[1760893760606,2.48478332,4024.5,4023.6,0.2272]
[1760893760807,2.48487915,4024.4,4023.6,0.2272]
[1760893761130,2.48492909,4024.3,4023.6,0.2272]
[1760893761816,2.48475033,4024.6,4023.6,0.2272]
[1760893762000,2.4848006,4024.5,4023.6,0.1772]
[1760893762407,0.176,4024.9,4023.6,0.1772]
[1760893762608,2.48477857,4024.6,4023.7,0.4475]
[1760893762820,1.728,4025.2,4023.7,0.4475]
[1760893762988,2.48486051,4024.4,4023.7,0.4475]
[1760893763191,2.48492511,4024.3,4023.7,0.4475]
[1760893763406,2.48492511,4024.3,4023.6,0.1772]
[1760893763823,0.2183,4024.4,4023.2,0.4475]
[1760893764207,2.4849042,4024.3,4023.2,0.4475]
[1760893764427,0.2183,4024.4,4023.2,0.4475]
[1760893764631,2.48520098,4023.9,4022.9,0.2272]
[1760893764790,2.4849042,4024.3,4022.9,0.2272]
[1760893764991,3.7712,4024.2,4022.9,0.2272]
[1760893765314,1.728,4024.1,4022.4,0.2272]
[1760893765527,2.48548347,4023.4,4022.4,0.2272]
[1760893765730,2.48553994,4023.3,4022.4,0.2272]
[1760893765951,2.4855025,4023.4,4022.4,0.2272]
[1760893766152,0.1304,4023.6,4022.4,0.2272]
[1760893766340,2.4856734,4023.1,4022.4,0.2272]
[1760893766528,0.1304,4023.6,4022.4,0.2272]
[1760893766727,0.1084,4023.5,4021.9,0.2272]
[1760893767050,2.4861985,4022.3,4021.6,0.2272]
[1760893767252,2.48620932,4022.2,4021.6,0.2272]
[1760893767463,3.655,4022.7,4021.7,0.0248651]
[1760893767748,3.655,4022.7,4021.6,0.2272]
[1760893767749,2.48601764,4022.5,4021.6,0.2272]
[1760893768553,3.655,4022.7,4021.6,0.2272]
[1760893768731,3.655,4022.7,4021.3,0.2272]
[1760893768926,2.48626314,4022.2,4021.3,0.2272]
[1760893769146,3.655,4022.7,4021.3,0.2272]
[1760893769340,2.48633083,4022.0,4021.3,0.2272]
[1760893769528,2.48627268,4022.1,4021.3,0.2272]
[1760893769730,3.655,4022.7,4021.3,0.6747]
[1760893770054,3.655,4022.7,4021.7,2.48647818]
[1760893770055,3.644,4022.7,4021.7,2.48647818]
[1760893770355,3.644,4022.7,4021.4,2.95906313]
[1760893770356,3.644,4022.7,4021.8,2.48639784]
[1760893770551,2.48577687,4022.9,4021.8,2.48639784]
[1760893770753,2.48584012,4022.8,4021.8,14.19585762]
[1760893771054,2.48595581,4022.6,4021.8,11.70945978]
[1760893771414,1.8363,4023.1,4021.8,11.70945978]
[1760893771617,2.48601833,4022.5,4021.4,0.4475]
[1760893771846,2.48623892,4022.2,4021.3,0.2272]
[1760893772241,0.1083,4023.5,4022.1,0.2272]
[1760893772444,0.099,4024.5,4022.7,11.70945978]
[1760893772632,0.099,4024.5,4022.2,0.4475]
[1760893772633,0.407,4024.8,4023.3,11.70945978]
[1760893772828,0.407,4024.8,4023.4,0.6584546]
[1760893773032,0.407,4024.8,4023.3,12.15695978]
[1760893773033,2.48465724,4024.7,4023.6,3.11888676]
[1760893773229,0.407,4024.8,4024.0,2.48503857]
[1760893773429,0.1001,4025.0,4024.1,0.02485027]
[1760893773652,2.48416345,4025.5,4024.2,0.6747]
[1760893773849,2.48416345,4025.5,4024.4,2.48483136]
[1760893774050,4.21216345,4025.5,4024.4,2.48483136]
[1760893774558,2.48406513,4025.7,4024.2,4.3077]
[1760893774559,0.099,4025.7,4024.2,4.3077]
[1760893774759,2.48417252,4025.5,4024.4,2.4847901]
[1760893775059,2.48397833,4025.8,4024.7,2.48465312]
[1760893775255,0.124,4025.5,4024.9,0.124]
[1760893775554,0.124,4025.7,4025.1,0.124]
[1760893775856,0.124,4025.7,4025.2,0.2242]
[1760893776435,0.2237,4025.7,4025.1,0.124]
[1760893776640,2.48415916,4025.6,4025.1,0.124]
[1760893776937,2.4843486,4025.2,4025.1,0.124]
[1760893777160,0.2936,4025.9,4024.2,1.98076294]
[1760893777161,0.124,4025.3,4024.6,0.124]
[1760893777656,0.0997,4025.5,4024.2,0.2272]
[1760893777657,2.48456366,4024.9,4024.2,0.2272]
[1760893777858,2.48456366,4024.9,4024.4,0.124]
[1760893778564,2.4845955,4024.8,4024.4,0.124]
[1760893778766,0.124,4025.1,4024.4,0.124]
[1760893779355,2.48448172,4025.0,4024.4,0.124]
[1760893779556,0.124,4025.1,4024.4,0.124]
[1760893779756,2.48455382,4024.9,4024.4,0.124]
[1760893779956,0.124,4025.1,4024.4,0.124]
[1760893780353,0.124,4025.1,4023.8,1.30336294]
[1760893780354,0.2004,4025.2,4023.8,2.48520591]
[1760893780661,2.48449223,4025.0,4024.1,0.2242]
[1760893780842,3.615,4025.4,4024.1,0.6744]
[1760893781044,3.614,4025.6,4024.1,0.2242]
[1760893781243,2.48453248,4025.0,4024.1,0.2242]
[1760893781444,2.48452225,4025.0,4024.1,0.2242]
[1760893781649,0.1023,4024.9,4024.1,0.2242]
[1760893781832,2.58685928,4024.9,4024.1,0.2242]
[1760893782057,2.58685928,4024.9,4023.6,1.0858]
[1760893782058,0.1023,4024.9,4023.6,0.002]
[1760893782266,2.48464895,4024.8,4024.1,0.2242]
[1760893782578,3.614,4024.9,4024.2,0.02484965]
[1760893782739,3.614,4024.9,4024.1,0.2242]
[1760893782941,6.0985476,4024.9,4024.1,0.2242]
[1760893783276,0.2936,4025.9,4024.1,0.2242]
[1760893783277,0.12,4025.9,4024.8,11.70945978]
[1760893783577,0.3355,4026.7,4025.6,1.30336294]
[1760893783750,0.3355,4026.7,4025.0,1.73658319]
[1760893783751,2.4834869,4026.6,4025.4,1.30336294]
[1760893784491,0.3355,4026.7,4025.5,1.30336294]
[1760893784772,0.3355,4026.7,4025.6,3.78745567]
[1760893784978,0.3355,4026.7,4025.5,1.30336294]
[1760893785138,2.81893067,4026.7,4025.5,1.30336294]
[1760893785465,2.48353737,4026.6,4025.4,4.23777389]
[1760893785677,2.48353737,4026.6,4025.4,1.75356294]
[1760893785877,2.48353737,4026.6,4025.4,4.23773446]
[1760893786074,2.48354787,4026.5,4025.5,2.48412917]
[1760893786277,2.48354787,4026.5,4025.6,2.48408524]
[1760893786449,0.3355,4026.7,4025.4,0.4502]
[1760893786787,0.3355,4026.7,4025.2,4.92936294]
[1760893786788,0.1006,4026.6,4025.2,1.93696294]
[1760893786950,2.48355787,4026.5,4025.3,1.30336294]
[1760893787271,2.48355787,4026.5,4025.2,2.38716294]
[1760893787476,2.48352678,4026.6,4025.2,0.4502]
[1760893787678,3.9515,4026.7,4025.2,1.75356294]
[1760893787975,0.3355,4026.7,4025.4,11.70945978]
[1760893788267,0.12,4026.7,4025.4,11.70945978]
[1760893788485,0.12,4026.7,4025.5,0.4502]
[1760893788646,0.12,4026.7,4025.6,0.02484101]
[1760893788845,0.12,4026.7,4025.7,2.93424004]
[1760893789046,2.48282362,4027.7,4025.7,2.93424004]
[1760893789047,2.48306353,4027.3,4025.9,2.48386186]
[1760893789361,0.12,4027.5,4025.7,3.78740298]
[1760893789362,0.12,4027.5,4025.7,1.30336294]
[1760893789669,2.48341305,4026.8,4025.8,3.61]
[1760893789869,2.48342357,4026.7,4025.8,3.61]
[1760893790374,2.4835465,4026.5,4025.7,0.4502]
[1760893790538,0.2159,4026.9,4025.5,1.30336294]
[1760893790868,2.48360897,4026.4,4025.4,2.48421967]
[1760893791670,2.48373089,4026.3,4025.2,1.75356294]
[1760893791875,2.48375099,4026.2,4025.2,4.23785325]
[1760893792246,2.48336147,4026.8,4025.2,1.75356294]
[1760893792446,2.48372802,4026.3,4025.3,2.48428688]
[1760893792649,0.2159,4026.9,4025.2,2.93453794]
[1760893792650,2.48375771,4026.2,4025.2,2.93453794]
[1760893792842,0.2159,4026.9,4025.2,0.4502]
[1760893793057,0.2159,4026.9,4025.1,3.599]
[1760893793058,0.1002,4026.8,4025.1,3.599]
[1760893793255,2.4835465,4026.5,4024.8,0.4502]
[1760893793469,1.728,4027.3,4025.0,0.6336]
[1760893793674,2.48342517,4026.7,4025.6,2.48404821]
[1760893793873,2.48338291,4026.8,4025.7,0.4502]
[1760893794074,2.48354628,4026.6,4025.7,0.4502]
[1760893794275,0.2136,4026.9,4025.7,0.4502]
[1760893794481,0.001,4026.2,4025.7,0.4502]
[1760893794981,0.001,4026.2,4025.5,2.48415633]
[1760893795186,0.001,4026.2,4025.2,2.48434381]
[1760893795187,2.48379324,4026.1,4025.2,2.48434381]
[1760893795348,2.48379324,4026.1,4025.1,3.596]
[1760893795549,2.48379324,4026.1,4025.2,2.48432788]
[1760893795788,2.4847353,4026.2,4025.4,2.48421666]
[1760893796397,0.001,4026.2,4025.1,0.4502]
[1760893796694,0.001,4026.2,4025.6,2.48406509]
[1760893796895,0.001,4026.2,4025.3,2.48428385]
[1760893797082,0.001,4026.2,4025.5,2.48415401]
[1760893797588,0.001,4026.2,4025.4,2.93441462]
[1760893797765,0.001,4026.2,4025.5,2.48414184]
[1760893798091,0.001,4026.2,4025.7,2.48402693]
[1760893798681,0.001,4026.2,4025.8,0.4502]
[1760893799182,0.001,4026.2,4025.4,0.4502]
[1760893799349,0.001,4026.2,4025.5,2.48416345]
[1760893799552,0.001,4026.2,4026.1,0.2242]
[1760893799754,2.48476186,4026.2,4025.4,0.4502]
[1760893799984,0.001,4026.2,4025.4,6.51141607]
[1760893800180,0.001,4026.2,4025.4,4.0272]
[1760893800387,0.001,4026.2,4025.9,0.6336]
[1760893800586,0.001,4026.2,4026.1,0.3482]
[1760893800768,0.001,4026.2,4026.1,2.83199324]
[1760893800962,0.001,4026.2,4026.1,3.28219324]